[Event "Torneo Nuevo Centro. Jornada 10"]
[Site "Chess.com"]
[Date "2020.08.21"]
[Round "6"]
[White "Zamora Soler, Raul"]
[Black "Perez Garcia, Jose Miguel"]
[Result "1-0"]
[WhiteElo "1863"]
[BlackElo "2053"]
[TimeControl "180+2"]
[EndTime "11:39:21 PDT"]
[Termination "Victoria de rzamora80 por abandono"]

1. Nf3 {[%clk 0:03:01.9]} 1... Nf6 {[%clk 0:03:00.4]} 2. d4 {[%clk 0:03:02.8]}
2... d5 {[%clk 0:03:00.9]} 3. e3 {[%clk 0:03:02.4]} 3... c5 {[%clk 0:03:01]} 4.
b3 {[%clk 0:02:59.1]} 4... g6 {[%clk 0:03:00.6]} 5. Bb2 {[%clk 0:02:59.8]} 5...
Bg7 {[%clk 0:03:01.6]} 6. Nbd2 {[%clk 0:03:00.2]} 6... O-O {[%clk 0:03:02.7]} 7.
Be2 {[%clk 0:03:00.5]} 7... Nc6 {[%clk 0:03:03.9]} 8. O-O {[%clk 0:03:00.6]}
8... b6 {[%clk 0:03:03.3]} 9. c4 {[%clk 0:03:01.5]} 9... cxd4 {[%clk 0:03:01.6]}
10. Nxd4 {[%clk 0:03:02.3]} 10... Nxd4 {[%clk 0:03:02.1]} 11. Bxd4 {[%clk
0:03:02.9]} 11... Bb7 {[%clk 0:03:02.1]} 12. Bf3 {[%clk 0:02:58.8]} 12... e6
{[%clk 0:03:01.8]} 13. Rc1 {[%clk 0:02:57]} 13... Qd7 {[%clk 0:02:58.1]} 14.
cxd5 {[%clk 0:02:57.4]} 14... Nxd5 {[%clk 0:02:57.8]} 15. Bxg7 {[%clk
0:02:57.7]} 15... Kxg7 {[%clk 0:02:59.1]} 16. Nc4 {[%clk 0:02:58]} 16... Rfd8
{[%clk 0:02:56.5]} 17. Ne5 {[%clk 0:02:42.2]} 17... Qd6 {[%clk 0:02:52.3]} 18.
Nc4 {[%clk 0:02:36.3]} 18... Qe7 {[%clk 0:02:53.2]} 19. Qc2 {[%clk 0:02:34.5]}
19... Rac8 {[%clk 0:02:49.4]} 20. Qb2+ {[%clk 0:02:34]} 20... Qf6 {[%clk
0:02:48.6]} 21. Qxf6+ {[%clk 0:02:26.2]} 21... Kxf6 {[%clk 0:02:50.5]} 22. e4
{[%clk 0:02:18.8]} 22... Nf4 {[%clk 0:02:40.4]} 23. e5+ {[%clk 0:02:19.2]} 23...
Kg7 {[%clk 0:02:41.3]} 24. Bxb7 {[%clk 0:02:18.8]} 24... Rb8 {[%clk 0:02:40]}
25. Bf3 {[%clk 0:02:17.1]} 25... Nd3 {[%clk 0:02:36.9]} 26. Rcd1 {[%clk
0:02:02.1]} 26... b5 {[%clk 0:02:37.9]} 27. Na5 {[%clk 0:01:56.8]} 27... Nxe5
{[%clk 0:02:37.4]} 28. Nc6 {[%clk 0:01:57.5]} 28... Rxd1 {[%clk 0:02:37.4]} 29.
Rxd1 {[%clk 0:01:57.5]} 29... Nxf3+ {[%clk 0:02:35.6]} 30. gxf3 {[%clk
0:01:57.1]} 30... Rb7 {[%clk 0:02:33.2]} 31. Kf1 {[%clk 0:01:48.4]} 31... a6
{[%clk 0:02:25.1]} 32. b4 {[%clk 0:01:43.7]} 32... Rc7 {[%clk 0:02:24.8]} 33.
Na5 {[%clk 0:01:39.4]} 33... Rc2 {[%clk 0:02:25.2]} 34. a3 {[%clk 0:01:38]}
34... Rc3 {[%clk 0:02:25.7]} 35. Rd6 {[%clk 0:01:35.5]} 35... Rxf3 {[%clk
0:02:25.8]} 36. Rxa6 {[%clk 0:01:34.6]} 36... Rxa3 {[%clk 0:02:24.8]} 37. Rb6
{[%clk 0:01:35.4]} 37... Rh3 {[%clk 0:02:23.8]} 38. Kg2 {[%clk 0:01:36]} 38...
Rh5 {[%clk 0:02:23.5]} 39. Nb3 {[%clk 0:01:25.6]} 39... Rg5+ {[%clk 0:02:23.1]}
40. Kf1 {[%clk 0:01:24.7]} 40... Rh5 {[%clk 0:02:23.3]} 41. Nc5 {[%clk
0:01:20.1]} 41... Rxh2 {[%clk 0:02:23.1]} 42. Rxb5 {[%clk 0:01:21]} 42... Rh1+
{[%clk 0:02:23.9]} 43. Kg2 {[%clk 0:01:20.5]} 43... Rb1 {[%clk 0:02:25.8]} 44.
Rb7 {[%clk 0:01:21]} 44... Kf6 {[%clk 0:02:25.2]} 45. Nd7+ {[%clk 0:01:17.1]}
45... Kf5 {[%clk 0:02:21.9]} 46. b5 {[%clk 0:01:16]} 46... h5 {[%clk 0:02:21.2]}
47. Nc5 {[%clk 0:01:13]} 47... f6 {[%clk 0:02:20.1]} 48. b6 {[%clk 0:01:04.6]}
48... h4 {[%clk 0:02:20]} 49. Rb8 {[%clk 0:01:04.2]} 49... Rb5 {[%clk
0:02:17.3]} 50. Nd3 {[%clk 0:00:59.6]} 50... g5 {[%clk 0:02:16]} 51. b7 {[%clk
0:00:54.3]} 51... e5 {[%clk 0:02:16.4]} 52. Ne1 {[%clk 0:00:51.9]} 52... g4
{[%clk 0:02:16.1]} 53. Nc2 {[%clk 0:00:50.7]} 53... h3+ {[%clk 0:02:13]} 54. Kg3
{[%clk 0:00:50.1]} 54... Rb3+ {[%clk 0:02:13.2]} 55. Ne3+ {[%clk 0:00:50.8]}
55... Ke4 {[%clk 0:02:13.7]} 56. Kxg4 {[%clk 0:00:31.3]} 56... h2 {[%clk
0:02:11.3]} 57. Rh8 {[%clk 0:00:31.1]} 57... Rxb7 {[%clk 0:02:11.8]} 58. Nf5
{[%clk 0:00:28.2]} 58... Rb1 {[%clk 0:02:05.2]} 59. f3+ {[%clk 0:00:29]} 59...
Kd5 {[%clk 0:02:02.5]} 60. Rxh2 {[%clk 0:00:29.5]} 60... Rg1+ {[%clk 0:02:03.3]}
61. Kh3 {[%clk 0:00:23]} 61... Rg5 {[%clk 0:01:59.5]} 62. Ng3 {[%clk 0:00:19.9]}
62... Ke6 {[%clk 0:02:00]} 63. Re2 {[%clk 0:00:20.3]} 63... f5 {[%clk
0:01:59.1]} 64. f4 {[%clk 0:00:21.4]} 64... Rg8 {[%clk 0:01:39.1]} 65. Rxe5+
{[%clk 0:00:21.9]} 65... Kf6 {[%clk 0:01:40.5]} 66. Rxf5+ {[%clk 0:00:22.9]}
66... Ke6 {[%clk 0:01:41.9]} 67. Rg5 {[%clk 0:00:23.5]} 67... Rh8+ {[%clk
0:01:42.8]} 68. Kg4 {[%clk 0:00:24.7]} 68... Kf6 {[%clk 0:01:44.1]} 69. Ne4+
{[%clk 0:00:25.6]} 69... Ke6 {[%clk 0:01:45.2]} 70. Rg6+ {[%clk 0:00:25.9]}
70... Kf7 {[%clk 0:01:45.7]} 71. f5 {[%clk 0:00:27]} 71... Rh1 {[%clk
0:01:46.3]} 72. Ng5+ {[%clk 0:00:25.7]} 72... Kf8 {[%clk 0:01:45.8]} 73. Rb6
{[%clk 0:00:25.5]} 73... Rg1+ {[%clk 0:01:45.9]} 74. Kh5 {[%clk 0:00:26.5]}
74... Ke7 {[%clk 0:01:41.5]} 75. Kg6 {[%clk 0:00:26.9]} 75... Rf1 {[%clk
0:01:40.3]} 76. Rb7+ {[%clk 0:00:27]} 76... Ke8 {[%clk 0:01:41.5]} 77. f6 {[%clk
0:00:27.9]} 77... Kd8 {[%clk 0:01:31.1]} 78. f7 {[%clk 0:00:26.5]} 78... Kc8
{[%clk 0:01:31.2]} 79. Rb3 {[%clk 0:00:24.5]} 79... Kd8 {[%clk 0:01:29.8]} 80.
Rf3 {[%clk 0:00:25]} 80... Rxf3 {[%clk 0:01:28.5]} 81. Nxf3 {[%clk 0:00:25.6]}
81... Ke7 {[%clk 0:01:30.4]} 82. Kg7 {[%clk 0:00:26.7]} 1

[Event "Torneo Nuevo Centro. Jornada 10"]
[Site "Chess.com"]
[Date "2020.08.21"]
[Round "6"]
[White "Serrano Requena, Guillem"]
[Black "Fente Fernandez, Jose Ignacio"]
[Result "1-0"]
[WhiteElo "1292"]
[BlackElo "1524"]
[TimeControl "180+2"]
[EndTime "11:39:47 PDT"]
[Termination "Victoria de Guily351 por jaque mate"]

1. d4 {[%clk 0:03:01.9]} 1... d5 {[%clk 0:02:59.2]} 2. Nf3 {[%clk 0:02:58]} 2...
c6 {[%clk 0:02:59.7]} 3. c4 {[%clk 0:02:57.9]} 3... Bf5 {[%clk 0:02:55.7]} 4.
Nc3 {[%clk 0:02:55.7]} 4... dxc4 {[%clk 0:02:55.9]} 5. e4 {[%clk 0:02:55]} 5...
Bg6 {[%clk 0:02:35.9]} 6. Bxc4 {[%clk 0:02:46.3]} 6... b5 {[%clk 0:02:35.3]} 7.
Nxb5 {[%clk 0:02:26.9]} 7... cxb5 {[%clk 0:02:34.7]} 8. Bd5 {[%clk 0:02:27.4]}
8... Nd7 {[%clk 0:02:20.6]} 9. Bxa8 {[%clk 0:02:20.3]} 9... Qxa8 {[%clk
0:02:22.5]} 10. Qe2 {[%clk 0:02:14.3]} 10... Qxe4 {[%clk 0:02:16.6]} 11. Qxe4
{[%clk 0:02:07.6]} 11... Bxe4 {[%clk 0:02:18.5]} 12. O-O {[%clk 0:02:08.4]}
12... Bxf3 {[%clk 0:02:18.7]} 13. gxf3 {[%clk 0:02:09.2]} 13... Ngf6 {[%clk
0:02:19.9]} 14. Kg2 {[%clk 0:02:07.8]} 14... e6 {[%clk 0:02:20]} 15. Be3 {[%clk
0:02:07.9]} 15... Bd6 {[%clk 0:02:17.2]} 16. Rfd1 {[%clk 0:02:00.6]} 16... Nb6
{[%clk 0:02:14.9]} 17. Rac1 {[%clk 0:01:55.9]} 17... O-O {[%clk 0:02:15]} 18. b3
{[%clk 0:01:55.8]} 18... Nbd5 {[%clk 0:02:14.3]} 19. Rc6 {[%clk 0:01:53.4]}
19... Bf4 {[%clk 0:02:08.3]} 20. Re1 {[%clk 0:01:45.2]} 20... Bxe3 {[%clk
0:02:01.3]} 21. fxe3 {[%clk 0:01:45.3]} 21... a5 {[%clk 0:01:55.6]} 22. Rec1
{[%clk 0:01:10.3]} 22... Nxe3+ {[%clk 0:01:54]} 23. Kf2 {[%clk 0:01:08.3]} 23...
Ned5 {[%clk 0:01:52]} 24. R6c5 {[%clk 0:01:08.1]} 24... Nf4 {[%clk 0:01:42.8]}
25. Ke3 {[%clk 0:01:05.9]} 25... N6d5+ {[%clk 0:01:41.9]} 26. Kd2 {[%clk
0:00:56.8]} 26... a4 {[%clk 0:01:18.5]} 27. Rxb5 {[%clk 0:00:52.2]} 27... axb3
{[%clk 0:01:18.5]} 28. Rxb3 {[%clk 0:00:45.3]} 28... h6 {[%clk 0:01:17]} 29. a4
{[%clk 0:00:43.3]} 29... Ra8 {[%clk 0:01:10.6]} 30. Ra1 {[%clk 0:00:39.4]} 30...
Ng2 {[%clk 0:00:44.1]} 31. a5 {[%clk 0:00:32.2]} 31... Nge3 {[%clk 0:00:43.7]}
32. a6 {[%clk 0:00:31.1]} 32... Nc4+ {[%clk 0:00:44.4]} 33. Kd3 {[%clk
0:00:27.1]} 33... Ncb6 {[%clk 0:00:36.9]} 34. a7 {[%clk 0:00:13.2]} 34... Kf8
{[%clk 0:00:30.7]} 35. Rba3 {[%clk 0:00:12.2]} 35... Nf4+ {[%clk 0:00:27.9]} 36.
Ke3 {[%clk 0:00:12.1]} 36... Nc4+ {[%clk 0:00:28.4]} 37. Kxf4 {[%clk 0:00:11.8]}
37... Nxa3 {[%clk 0:00:30.3]} 38. Rxa3 {[%clk 0:00:13]} 38... Ke7 {[%clk
0:00:30.4]} 39. Ke5 {[%clk 0:00:14.1]} 39... f6+ {[%clk 0:00:30.9]} 40. Kf4
{[%clk 0:00:15]} 40... g6 {[%clk 0:00:31]} 41. Ke4 {[%clk 0:00:15.8]} 41... Kd6
{[%clk 0:00:31.2]} 42. Ra6+ {[%clk 0:00:15.7]} 42... Ke7 {[%clk 0:00:32.2]} 43.
d5 {[%clk 0:00:16.2]} 43... exd5+ {[%clk 0:00:31.5]} 44. Kxd5 {[%clk 0:00:17.3]}
44... g5 {[%clk 0:00:30.4]} 45. Kc6 {[%clk 0:00:18]} 45... h5 {[%clk 0:00:13.1]}
46. Kb7 {[%clk 0:00:18.3]} 46... Re8 {[%clk 0:00:13]} 47. a8=Q {[%clk
0:00:16.5]} 47... Rxa8 {[%clk 0:00:13.5]} 48. Kxa8 {[%clk 0:00:16.5]} 48... g4
{[%clk 0:00:15]} 49. fxg4 {[%clk 0:00:16.6]} 49... hxg4 {[%clk 0:00:16.9]} 50.
Kb7 {[%clk 0:00:15.2]} 50... f5 {[%clk 0:00:15.4]} 51. Kc6 {[%clk 0:00:14.4]}
51... Kf6 {[%clk 0:00:14.3]} 52. Ra4 {[%clk 0:00:13.9]} 52... Kg5 {[%clk
0:00:14.3]} 53. Kd5 {[%clk 0:00:14.6]} 53... f4 {[%clk 0:00:15.1]} 54. Ra1
{[%clk 0:00:13.2]} 54... g3 {[%clk 0:00:15.8]} 55. hxg3 {[%clk 0:00:13.7]} 55...
fxg3 {[%clk 0:00:17.7]} 56. Ke4 {[%clk 0:00:14.1]} 56... Kg4 {[%clk 0:00:19]}
57. Ke3 {[%clk 0:00:14.7]} 57... Kh3 {[%clk 0:00:18.7]} 58. Ke2 {[%clk
0:00:10.5]} 58... g2 {[%clk 0:00:17.3]} 59. Kf2 {[%clk 0:00:10.7]} 59... Kh2
{[%clk 0:00:17.1]} 60. Rg1 {[%clk 0:00:11.1]} 60... Kh3 {[%clk 0:00:16.5]} 61.
Rxg2 {[%clk 0:00:11.9]} 61... Kh4 {[%clk 0:00:17]} 62. Rg1 {[%clk 0:00:12.1]}
62... Kh5 {[%clk 0:00:17.5]} 63. Kf3 {[%clk 0:00:13]} 63... Kh6 {[%clk
0:00:17.2]} 64. Kf4 {[%clk 0:00:13.9]} 64... Kh7 {[%clk 0:00:15.4]} 65. Kf5
{[%clk 0:00:14.7]} 65... Kh6 {[%clk 0:00:15]} 66. Rg2 {[%clk 0:00:13.4]} 66...
Kh7 {[%clk 0:00:15.4]} 67. Kf6 {[%clk 0:00:13]} 67... Kh8 {[%clk 0:00:15.8]} 68.
Kf7 {[%clk 0:00:13.8]} 68... Kh7 {[%clk 0:00:14.8]} 69. Rh2# {[%clk 0:00:14.7]}
1

[Event "Torneo Nuevo Centro. Jornada 10"]
[Site "Chess.com"]
[Date "2020.08.21"]
[Round "7"]
[White "Buenafe Moya, Javier"]
[Black "Hernández Tomás, Efrén"]
[Result "1-0"]
[WhiteElo "1812"]
[BlackElo "1107"]
[TimeControl "180+2"]
[EndTime "11:42:31 PDT"]
[Termination "Victoria de JavierBuenafeMoya por abandono"]

1. e4 {[%clk 0:03:01.9]} 1... e5 {[%clk 0:03:00.7]} 2. Nf3 {[%clk 0:03:01.8]}
2... Nf6 {[%clk 0:03:00.9]} 3. Bc4 {[%clk 0:02:58.5]} 3... Bc5 {[%clk
0:02:59.3]} 4. d3 {[%clk 0:02:58.2]} 4... d6 {[%clk 0:02:55.9]} 5. O-O {[%clk
0:02:57.7]} 5... h6 {[%clk 0:02:54.6]} 6. c3 {[%clk 0:02:58.2]} 6... Ng4 {[%clk
0:02:53.6]} 7. d4 {[%clk 0:02:57.5]} 7... exd4 {[%clk 0:02:52.7]} 8. cxd4 {[%clk
0:02:57.9]} 8... Bb6 {[%clk 0:02:49.7]} 9. h3 {[%clk 0:02:57.7]} 9... Nf6 {[%clk
0:02:47.7]} 10. Nc3 {[%clk 0:02:50.1]} 10... O-O {[%clk 0:02:46.6]} 11. Qb3
{[%clk 0:02:48.3]} 11... Nc6 {[%clk 0:02:43.6]} 12. e5 {[%clk 0:02:44.5]} 12...
dxe5 {[%clk 0:02:38.6]} 13. dxe5 {[%clk 0:02:44.7]} 13... Nd7 {[%clk 0:02:30]}
14. Bxf7+ {[%clk 0:02:38]} 14... Rxf7 {[%clk 0:02:28.1]} 15. e6 {[%clk
0:02:38.3]} 15... Nd4 {[%clk 0:02:12.5]} 16. exf7+ {[%clk 0:02:32.5]} 1

[Event "Torneo Nuevo Centro. Jornada 10"]
[Site "Chess.com"]
[Date "2020.08.21"]
[Round "7"]
[White "Valero Martinez, Óscar"]
[Black "Sanchis Bon, Sergi"]
[Result "0-1"]
[WhiteElo "1030"]
[BlackElo "1002"]
[TimeControl "180+2"]
[EndTime "11:42:42 PDT"]
[Termination "Victoria de Sergi_2011 por jaque mate"]

1. e4 {[%clk 0:03:01.8]} 1... Nc6 {[%clk 0:02:56.5]} 2. Nf3 {[%clk 0:03:00.2]}
2... Nf6 {[%clk 0:02:50.2]} 3. Nc3 {[%clk 0:03:00.8]} 3... e5 {[%clk 0:02:49.2]}
4. Bc4 {[%clk 0:03:02.3]} 4... Bc5 {[%clk 0:02:48]} 5. Ng5 {[%clk 0:03:03.8]}
5... O-O {[%clk 0:02:38.1]} 6. d3 {[%clk 0:02:55.6]} 6... d6 {[%clk 0:02:23.2]}
7. Nd5 {[%clk 0:02:54.6]} 7... Bg4 {[%clk 0:02:14.2]} 8. Nxf6+ {[%clk
0:02:51.1]} 8... Qxf6 {[%clk 0:02:08.5]} 9. Qxg4 {[%clk 0:02:50.5]} 9... Qxf2+
{[%clk 0:01:57.5]} 10. Kd1 {[%clk 0:02:45.3]} 10... Nd4 {[%clk 0:01:47.8]} 11.
Re1 {[%clk 0:02:32.7]} 11... Qxc2# {[%clk 0:01:42.2]} 0

[Event "Torneo Nuevo Centro. Jornada 10"]
[Site "Chess.com"]
[Date "2020.08.21"]
[Round "7"]
[White "Kovacevic, Slobodan"]
[Black "Salvador Buiza, Victor"]
[Result "1-0"]
[WhiteElo "2304"]
[BlackElo "1890"]
[TimeControl "180+2"]
[EndTime "11:42:49 PDT"]
[Termination "Victoria de nikko110 por jaque mate"]

1. d4 {[%clk 0:03:01.9]} 1... d5 {[%clk 0:03:00.3]} 2. Bf4 {[%clk 0:03:01.1]}
2... Nf6 {[%clk 0:03:01]} 3. e3 {[%clk 0:03:00.5]} 3... e6 {[%clk 0:03:02]} 4.
Nd2 {[%clk 0:02:59]} 4... Bd6 {[%clk 0:03:03.2]} 5. Bg3 {[%clk 0:02:58.3]} 5...
O-O {[%clk 0:03:01.9]} 6. Bd3 {[%clk 0:02:56.7]} 6... c5 {[%clk 0:03:01.1]} 7.
c3 {[%clk 0:02:56.5]} 7... a6 {[%clk 0:03:00.6]} 8. a4 {[%clk 0:02:55.8]} 8...
Nc6 {[%clk 0:02:54.8]} 9. Ngf3 {[%clk 0:02:54.8]} 9... Bxg3 {[%clk 0:02:52.4]}
10. hxg3 {[%clk 0:02:54]} 10... b6 {[%clk 0:02:45.4]} 11. Ne5 {[%clk 0:02:52.3]}
11... Bb7 {[%clk 0:02:41.2]} 12. Bxh7+ {[%clk 0:02:50.6]} 12... Kh8 {[%clk
0:02:26.2]} 13. Qf3 {[%clk 0:02:35.7]} 13... g6 {[%clk 0:02:25.8]} 14. Bxg6+
{[%clk 0:02:34]} 14... Kg7 {[%clk 0:02:26.8]} 15. Qf4 {[%clk 0:02:18.5]} 15...
Ng8 {[%clk 0:02:14.6]} 16. Rh7# {[%clk 0:02:13.8]} 1

[Event "Torneo Nuevo Centro. Jornada 10"]
[Site "Chess.com"]
[Date "2020.08.21"]
[Round "7"]
[White "Conejero Martínez, Víctor"]
[Black "Valverde Alcaide, Miguel Alejandro"]
[Result "1-0"]
[WhiteElo "1408"]
[BlackElo "909"]
[TimeControl "180+2"]
[EndTime "11:43:28 PDT"]
[Termination "Victoria de Camelocota20 por abandono"]

1. d4 {[%clk 0:03:01.9]} 1... d5 {[%clk 0:02:56.9]} 2. c4 {[%clk 0:03:03]} 2...
dxc4 {[%clk 0:02:56.6]} 3. e3 {[%clk 0:03:03.3]} 3... e6 {[%clk 0:02:52]} 4.
Bxc4 {[%clk 0:03:03.9]} 4... Bd7 {[%clk 0:02:49]} 5. Nc3 {[%clk 0:03:04.7]} 5...
b5 {[%clk 0:02:47.8]} 6. Bxb5 {[%clk 0:02:58.6]} 6... Bxb5 {[%clk 0:02:46.6]} 7.
Nxb5 {[%clk 0:02:59.1]} 7... Bb4+ {[%clk 0:02:44.6]} 8. Bd2 {[%clk 0:02:54.6]}
8... Qd5 {[%clk 0:02:43.2]} 9. Nxc7+ {[%clk 0:02:50.3]} 9... Kd8 {[%clk
0:02:36.6]} 10. Nxd5 {[%clk 0:02:49.6]} 10... Bxd2+ {[%clk 0:02:36.8]} 11. Qxd2
{[%clk 0:02:45]} 11... exd5 {[%clk 0:02:37.6]} 12. Qa5+ {[%clk 0:02:43.5]} 12...
Ke8 {[%clk 0:02:30.9]} 13. Qxd5 {[%clk 0:02:43.8]} 13... Nf6 {[%clk 0:02:30.5]}
14. Qxa8 {[%clk 0:02:44.2]} 14... Ke7 {[%clk 0:02:29.2]} 15. Qxa7+ {[%clk
0:02:43.7]} 15... Nfd7 {[%clk 0:02:27.5]} 16. Nf3 {[%clk 0:02:39.3]} 16... Nc6
{[%clk 0:02:24.2]} 17. Qa3+ {[%clk 0:02:37.1]} 17... Kf6 {[%clk 0:02:21.8]} 18.
Rc1 {[%clk 0:02:34.6]} 18... Ne7 {[%clk 0:02:06.9]} 19. Qd6+ {[%clk 0:02:33.3]}
19... Kf5 {[%clk 0:02:01.7]} 20. Qxd7+ {[%clk 0:02:33.9]} 20... Kf6 {[%clk
0:01:59]} 21. Rc7 {[%clk 0:02:34.3]} 1

[Event "Torneo Nuevo Centro. Jornada 10"]
[Site "Chess.com"]
[Date "2020.08.21"]
[Round "7"]
[White "Leal Uribe, Jhonny Alberto"]
[Black "Conon, Catalin"]
[Result "1-0"]
[WhiteElo "2441"]
[BlackElo "1932"]
[TimeControl "180+2"]
[EndTime "11:43:45 PDT"]
[Termination "Victoria de jhonnyuribe por abandono"]

1. c4 {[%clk 0:03:01.9]} 1... Nf6 {[%clk 0:02:59.6]} 2. e3 {[%clk 0:03:03.8]}
2... e6 {[%clk 0:03:00.4]} 3. Nf3 {[%clk 0:03:05.7]} 3... d5 {[%clk 0:03:01.4]}
4. d4 {[%clk 0:03:07.6]} 4... Be7 {[%clk 0:02:57.9]} 5. Nc3 {[%clk 0:03:09.5]}
5... O-O {[%clk 0:02:58.3]} 6. Bd3 {[%clk 0:03:11.4]} 6... c6 {[%clk 0:02:58.1]}
7. O-O {[%clk 0:03:12.8]} 7... dxc4 {[%clk 0:02:59.4]} 8. Bxc4 {[%clk
0:03:13.6]} 8... b6 {[%clk 0:03:00.5]} 9. Qe1 {[%clk 0:03:14.3]} 9... Bb7 {[%clk
0:02:59.3]} 10. Qe2 {[%clk 0:03:12.8]} 10... Nbd7 {[%clk 0:02:59.4]} 11. Rd1
{[%clk 0:03:13.8]} 11... Qc7 {[%clk 0:03:00.4]} 12. e4 {[%clk 0:03:14.4]} 12...
c5 {[%clk 0:02:59.7]} 13. d5 {[%clk 0:03:15.3]} 13... exd5 {[%clk 0:03:00.5]}
14. exd5 {[%clk 0:03:16.8]} 14... Bd6 {[%clk 0:03:01.5]} 15. Bg5 {[%clk
0:03:16.8]} 15... Rfe8 {[%clk 0:03:02]} 16. Qc2 {[%clk 0:03:16.8]} 16... a6
{[%clk 0:02:43.9]} 17. a4 {[%clk 0:03:12.3]} 17... h6 {[%clk 0:02:42.9]} 18. Bh4
{[%clk 0:03:12.1]} 18... Ng4 {[%clk 0:02:22.7]} 19. Bg3 {[%clk 0:03:12.6]} 19...
Bxg3 {[%clk 0:02:22.2]} 20. hxg3 {[%clk 0:03:14.5]} 20... Nge5 {[%clk
0:02:22.6]} 21. d6 {[%clk 0:03:15.1]} 21... Nxf3+ {[%clk 0:02:19.8]} 22. gxf3
{[%clk 0:03:14.8]} 22... Qd8 {[%clk 0:02:16.9]} 23. Bd5 {[%clk 0:03:10.7]} 23...
Bxd5 {[%clk 0:02:15.4]} 24. Nxd5 {[%clk 0:03:11.6]} 24... Nf6 {[%clk 0:02:16.4]}
25. Nc7 {[%clk 0:03:08.8]} 25... Qd7 {[%clk 0:02:11.4]} 26. Nxa8 {[%clk
0:03:07.6]} 26... Rxa8 {[%clk 0:02:10.4]} 27. Qd3 {[%clk 0:03:00.6]} 27... Rd8
{[%clk 0:02:07.7]} 28. Qxa6 {[%clk 0:03:01.5]} 28... Qc6 {[%clk 0:02:06]} 29. a5
{[%clk 0:02:59.6]} 29... Qxf3 {[%clk 0:02:06.8]} 30. Qxb6 {[%clk 0:02:56.9]}
30... Rf8 {[%clk 0:01:57.9]} 31. Qxc5 {[%clk 0:02:57]} 31... Ne4 {[%clk
0:01:58.7]} 32. Qe3 {[%clk 0:02:57.8]} 32... Qxe3 {[%clk 0:01:55.9]} 33. fxe3
{[%clk 0:02:58.2]} 33... Nxg3 {[%clk 0:01:57.8]} 34. d7 {[%clk 0:02:58.5]} 34...
Rd8 {[%clk 0:01:58.3]} 35. a6 {[%clk 0:02:59.5]} 35... Ne4 {[%clk 0:01:58.9]}
36. a7 {[%clk 0:03:00.6]} 1

[Event "Torneo Nuevo Centro. Jornada 10"]
[Site "Chess.com"]
[Date "2020.08.21"]
[Round "7"]
[White "Mellado Sais, Carles"]
[Black "Vicent Lázaro, Elena"]
[Result "1-0"]
[WhiteElo "1396"]
[BlackElo "678"]
[TimeControl "180+2"]
[EndTime "11:44:06 PDT"]
[Termination "Victoria de Magnus_carles por jaque mate"]

1. d4 {[%clk 0:03:01.9]} 1... e6 {[%clk 0:02:55.7]} 2. c4 {[%clk 0:03:00.7]}
2... c5 {[%clk 0:02:56.4]} 3. d5 {[%clk 0:02:59.7]} 3... exd5 {[%clk 0:02:50.8]}
4. cxd5 {[%clk 0:02:59.2]} 4... c4 {[%clk 0:02:36.5]} 5. e4 {[%clk 0:02:56.7]}
5... Bc5 {[%clk 0:02:34.5]} 6. Bxc4 {[%clk 0:02:54.8]} 6... Qf6 {[%clk
0:02:15.8]} 7. Nf3 {[%clk 0:02:52.5]} 7... g5 {[%clk 0:01:55.8]} 8. Bxg5 {[%clk
0:02:47]} 8... Qxf3 {[%clk 0:01:51.1]} 9. Qxf3 {[%clk 0:02:42.1]} 9... Bxf2+
{[%clk 0:01:49.6]} 10. Qxf2 {[%clk 0:02:40.6]} 10... f6 {[%clk 0:01:11.2]} 11.
Bxf6 {[%clk 0:02:36.8]} 11... Nxf6 {[%clk 0:01:08.8]} 12. Qxf6 {[%clk
0:02:35.8]} 12... Rf8 {[%clk 0:00:55.6]} 13. Qe5+ {[%clk 0:02:34.8]} 13... Kd8
{[%clk 0:00:35.3]} 14. d6 {[%clk 0:02:34.8]} 14... Rf2 {[%clk 0:00:33.1]} 15.
Qe7# {[%clk 0:02:33.2]} 1

[Event "Torneo Nuevo Centro. Jornada 10"]
[Site "Chess.com"]
[Date "2020.08.21"]
[Round "7"]
[White "Rabbani Perez, Ayoub "]
[Black "Miranda Calvo, Max Rodrigo"]
[Result "0-1"]
[WhiteElo "392"]
[BlackElo "1355"]
[TimeControl "180+2"]
[EndTime "11:44:17 PDT"]
[Termination "Victoria de bas-max-miranda por jaque mate"]

1. g4 {[%clk 0:03:01.9]} 1... d5 {[%clk 0:02:56.8]} 2. Nf3 {[%clk 0:02:58.5]}
2... Bxg4 {[%clk 0:02:50.6]} 3. Ng5 {[%clk 0:02:55.2]} 3... h6 {[%clk
0:02:48.3]} 4. Nxf7 {[%clk 0:02:55.1]} 4... Kxf7 {[%clk 0:02:46.6]} 5. Rg1
{[%clk 0:02:49.1]} 5... Nf6 {[%clk 0:02:46.1]} 6. Rxg4 {[%clk 0:02:48.5]} 6...
Nxg4 {[%clk 0:02:45.6]} 7. f3 {[%clk 0:02:47]} 7... Nf6 {[%clk 0:02:32.4]} 8. h4
{[%clk 0:02:43]} 8... Nbd7 {[%clk 0:02:28.6]} 9. f4 {[%clk 0:02:39.2]} 9... e6
{[%clk 0:02:25.8]} 10. h5 {[%clk 0:02:36.7]} 10... Bd6 {[%clk 0:02:22.3]} 11. e3
{[%clk 0:02:33.8]} 11... Nf8 {[%clk 0:02:22.9]} 12. Nc3 {[%clk 0:02:29.2]} 12...
N8d7 {[%clk 0:02:12.1]} 13. Nxd5 {[%clk 0:02:29.1]} 13... Nxd5 {[%clk
0:02:08.5]} 14. e4 {[%clk 0:02:25.1]} 14... Qh4+ {[%clk 0:02:07.7]} 15. Ke2
{[%clk 0:02:23.5]} 15... Nxf4+ {[%clk 0:02:08.1]} 16. Ke3 {[%clk 0:02:22.6]}
16... Qg3+ {[%clk 0:02:04.5]} 17. Kd4 {[%clk 0:02:20.5]} 17... e5+ {[%clk
0:02:03.7]} 18. Kc4 {[%clk 0:02:16.3]} 18... Nb6+ {[%clk 0:02:03.4]} 19. Kb5
{[%clk 0:02:10.6]} 19... c6+ {[%clk 0:02:00.7]} 20. Ka5 {[%clk 0:02:07.4]} 20...
Qf2 {[%clk 0:01:47.8]} 21. Ba6 {[%clk 0:02:01.8]} 21... Qc5+ {[%clk 0:01:42.1]}
22. Bb5 {[%clk 0:01:54.7]} 22... Qxb5# {[%clk 0:01:40.6]} 0